Cogmind - Beta 15 @@@ ROGUE MODE // 2025.09.01 @ 16:47:00 Player: delto Result: Destroyed by D-53 Grenadier with Mini Grenade Launcher Performance ------------- Evolutions (0) 0 Regions Visited (2) 400 Robots Destroyed (10) 50 Value Destroyed (115) 115 Prototype IDs (0) 0 Alien Tech Used (0) 0 Bonus (0) 0 TOTAL SCORE: 565 Bonus ------- None Cogmind --------- Core Integrity 0/250 Matter 300/300 Energy 51/100 System Corruption 0% Temperature Cool (0) Movement Core (50) Location -10/Mines Parts ------- > --- POWER (1) -------- (None) > --- PROPULSION (2) --- (None) > --- UTILITY (2) ------ ECM Suite > --- WEAPON (2) ------- (None) > --- INVENTORY (5) ---- Medium Matter Pod (32) Light Assault Rifle Peak State ------------ > --- POWER ------------ Ion Engine > --- PROPULSION ------- Light Treads Wheel > --- UTILITY ---------- Improved Terrain Scanner Seismic Detector > --- WEAPON ----------- Assault Rifle Assault Rifle > --- INVENTORY -------- Light Ion Engine Light Treads Wheel Small Storage Unit Mining Laser [Rating: 9] Favorites ----------- Power Ion Engine Engine Ion Engine Propulsion Wheel Treads Light Treads Leg Aluminum Leg Wheel Wheel Utility Seismic Detector Device Seismic Detector Storage Medium Matter Pod Weapon Assault Rifle Ballistic Gun Assault Rifle Special Weapon Mining Laser Build | -11 -10 -10 ------- Run | Yrd Mat Min Slots Evolved . | . . . Power . | . . . Propulsion . | . . . Utility . | . . . Weapon . | . . . Parts Attached 18 | 9 . 9 Power 2 | 1 . 1 Engine 2 | 1 . 1 Core . | . . . Reactor . | . . . Propulsion 8 | 4 . 4 Treads 2 | 2 . . Leg 3 | . . 3 Wheel 3 | 2 . 1 Hover . | . . . Flight . | . . . Utility 4 | 2 . 2 Device 3 | 2 . 1 Storage 1 | . . 1 Processor . | . . . Hackware . | . . . Protection . | . . . Artifact . | . . . Weapon 4 | 2 . 2 Energy Gun . | . . . Energy Cannon . | . . . Ballistic Gun 3 | 2 . 1 Ballistic Cannon . | . . . Launcher . | . . . Special Weapon 1 | . . 1 Impact Weapon . | . . . Slashing Weapon . | . . . Piercing Weapon . | . . . Special Melee Weapon . | . . . Unidentified Prototypes . | . . . Parts Lost 11 | . . 11 Power 2 | . . 2 Propulsion 4 | . . 4 Utility 2 | . . 2 Weapon 3 | . . 3 Highest Loss Streak 8 | . . 8 To Critical Strikes . | . . . Average Backups 4 | 3 4 4 Power . | . 1 . Propulsion 1 | 1 1 . Utility 1 | . 1 1 Weapon 1 | . 1 1 Tool/Special . | . . . Unused Backups 5 | 2 3 . Power . | . . . Propulsion 1 | 1 . . Utility 2 | . 2 . Weapon 1 | 1 . . Tool/Special 1 | . 1 . Average Slot Usage (%) 99 | . 100 98 Engine 13 | . 14 13 Leg 7 | . . 18 Wheel 20 | . 28 9 Device 22 | . 28 15 Storage 5 | . . 12 Ballistic Gun 28 | . 28 28 Peak Build Rating 9 | 9 9 9 Average Rating 7 | 6 9 6 On Entrance 6 | . 9 9 Naked Turns . | . . . Heaviest Build 12 | 11 11 12 Greatest Support 20 | 20 20 20 Greatest Overweight (x) 1 | . . 1 Average Overweight (x) . | . . . Largest Inventory Capacity 5 | 5 5 5 Average Capacity 5 | 5 5 5 Most Carried 5 | 5 5 5 Average Carried 4 | 3 4 4 Final Capacity 5 | 5 5 5 Final Carried 5 | 5 5 2 Class Distribution -------------------- 96% | Mutant 3% | Scavenger-Mutant Dominant Class ---------------- Mutant | -10/Materials Mutant | -10/Mines Resources | -11 -10 -10 ----------- Run | Yrd Mat Min Matter Collected 591 | 298 74 219 Remotely . | . . . Salvage Created 278 | 92 18 168 Parts 22 | 13 1 8 Haulers Intercepted . | . . . Recyclers Shooed . | . . . Parts Field Recycled . | . . . Retrieved Matter . | . . . Parts Self-Destructed . | . . . Prevented . | . . . Kills | -11 -10 -10 ------- Run | Yrd Mat Min Combat Hostiles Destroyed 9 | . . 9 Guns 9 | . . 9 Classes Destroyed 5 | 1 1 3 Tunneler 5 | 5 . . Operator 1 | . 1 . Swarmer 3 | . . 3 Grunt 1 | . . 1 Assembled 5 | . . 5 Best Kill Streak 5 | 5 1 3 Combat Bots Only 3 | . . 3 Max Kills in Single Turn 1 | 1 1 1 Gunslinging . | . . . Exploded . | . . . Melee . | . . . Uniques/NPCs Destroyed . | . . . Combat | -11 -10 -10 -------- Run | Yrd Mat Min Hostile Shots Fired 84 | . 6 78 Missed 25 | . 2 23 Hits 59 | . 4 55 Melee 3 | . . 3 Projectile 56 | . 4 52 AOE 9 | . . 9 Critical Strikes 2 | . . 2 Damage Taken 958 | . 33 925 Core 252 | . . 252 Absorbed by Shields . | . . . Core Remaining (%) 100 | 100 . . Volleys Fired 43 | 10 2 31 Largest 2 | 2 2 2 Hottest 40 | 40 40 40 Shots Fired 86 | 20 4 62 Gun 86 | 20 4 62 Cannon . | . . . Launcher . | . . . Special . | . . . Kinetic 86 | 20 4 62 Thermal . | . . . Explosive . | . . . Electromagnetic . | . . . Robot Hit Streak 10 | 7 10 4 Robot Miss Streak 3 | 2 . 3 Penetration Max . | . . . Secondary Targets 2 | . . 2 Max Gunslinging Chain 1 | . . 1 Shots Hit Robots 50 | 13 3 34 Core Hits 23 | 5 1 17 Critical Kills . | . . . Critical Parts Destroyed . | . . . Critical Strikes . | . . . Melee Attacks . | . . . Impact . | . . . Slashing . | . . . Piercing . | . . . Sneak Attacks . | . . . Combat Hostiles . | . . . Follow-up Attacks . | . . . Damage Inflicted 583 | 163 40 380 Guns 583 | 163 40 380 Cannons . | . . . Explosions . | . . . Melee . | . . . Ramming . | . . . Kinetic 583 | 163 40 380 Thermal . | . . . Explosive . | . . . Electromagnetic . | . . . Impact . | . . . Slashing . | . . . Piercing . | . . . Highest Corruption . | . . . Average Corruption . | . . . Corruption Purged . | . . . Corruption Blocked . | . . . Overload Shots . | . . . Overflow Damage . | . . . Projectiles . | . . . Explosions . | . . . Melee . | . . . Knockbacks . | . . . Impact . | . . . Kinetic . | . . . Secondary . | . . . Self-Inflicted Damage . | . . . Shots . | . . . Rammed . | . . . Targets Rammed . | . . . Kicked . | . . . Crushed . | . . . Highest Temperature 20 | . . 20 Average Temperature 17 | . . 17 Received Heat Transfer 116 | . . 116 Siege Activations . | . . . Martial Activations . | . . . Shielding Activations . | . . . Robots Disrupted . | . . . Combat Hostiles . | . . . Robots Corrupted . | . . . Combat Hostiles . | . . . Parts Fried . | . . . Impact Corruptions . | . . . Robots Melted . | . . . Combat Hostiles . | . . . Parts Melted . | . . . Heat Transferred . | . . . Parts Sabotaged . | . . . Parts Stolen . | . . . Parts Stripped . | . . . Power Chain Reactions . | . . . Alert | -11 -10 -10 ------- Run | Yrd Mat Min Maximum Alert Level . | . . . Low Security (%) 100 | 100 100 100 Level 1 . | . . . Level 2 . | . . . Level 3 . | . . . Level 4 . | . . . Level 5 . | . . . High Security . | . . . Max Security . | . . . Peak Influence 50 | 10 5 50 Initial . | . . . Average 5 | 1 . 16 Influence Increases 122 | 25 7 90 Destroy 0b10 Robot/C 80 | . . 80 Destroy 0b10 Robot/NC 30 | 25 5 . Destroy Leader 10 | . . 10 Successful Hack 2 | . 2 . Influence Decreases 122 | 25 7 90 Time Decay 102 | 25 7 70 Lost Part 20 | . . 20 Squads Dispatched 1 | . 1 . Investigation . | . . . Extermination . | . . . Reinforcement 1 | . 1 . Assault . | . . . Garrison . | . . . Intercept . | . . . Searches Triggered . | . . . Construction Impeded . | . . . Haulers Reinforced . | . . . Active Scanning Responses . | . . . Cargo Convoy Interrupts . | . . . Stealth | -11 -10 -10 --------- Run | Yrd Mat Min Distress Signals . | . . . Communications Jammed . | . . . Distress Signals . | . . . Times Spotted 24 | . 6 18 Peak Tracking Total 8 | . 4 8 Tactical Retreats . | . . . Traps | -11 -10 -10 ------- Run | Yrd Mat Min Traps Triggered . | . . . Indirectly . | . . . Trap Hack Attempts . | . . . Triggered . | . . . Disarmed . | . . . Reprogrammed . | . . . Reused . | . . . Traps Extracted . | . . . Installed . | . . . Triggered . | . . . Machines | -11 -10 -10 ---------- Run | Yrd Mat Min Machines Disabled . | . . . Max in Single Turn . | . . . Machines Repaired . | . . . Machines Dismantled . | . . . Machines Sabotaged . | . . . Overloaded Fab Kills . | . . . Hacking | -11 -10 -10 --------- Run | Yrd Mat Min Machines Accessed 3 | . 3 . Terminals 3 | . 3 . Fabricators . | . . . Repair Stations . | . . . Recycling Units . | . . . Scanalyzers . | . . . Garrison Access . | . . . Total Hacks 6 | . 6 . Successful 3 | . 3 . Failed 3 | . 3 . Catastrophic . | . . . Database Lockouts . | . . . Manual 4 | . 4 . Terminals 6 | . 6 . Fabricators . | . . . Repair Stations . | . . . Recycling Units . | . . . Scanalyzers . | . . . Garrison Access . | . . . Terminal Hacks 2 | . 2 . Locate Traps 1 | . 1 . Dispatch Records 1 | . 1 . Fabricator Hacks . | . . . Repair Station Hacks . | . . . Recycling Unit Hacks . | . . . Scanalyzer . | . . . Garrison Access Hacks . | . . . Unauthorized Hacks 1 | . 1 . Terminals 1 | . 1 . Botnet 1 | . 1 . Fabricators . | . . . Repair Stations . | . . . Recycling Units . | . . . Scanalyzers . | . . . Garrison Access . | . . . Data Cores Recovered 1 | . 1 . Used 1 | . 1 . Hacking Detections 2 | . 2 . Full Trace Events . | . . . Feedback Events . | . . . Feedback Blocked . | . . . Robot Schematics Acquired . | . . . Robots Built . | . . . Authchips . | . . . Time . | . . . Total Robot Build Rating . | . . . Part Schematics Acquired . | . . . Parts Built . | . . . Authchips . | . . . Time . | . . . Total Part Build Rating . | . . . Parts Repaired . | . . . Time . | . . . Parts Recycled . | . . . Recycled Matter . | . . . Retrieved Matter . | . . . Retrieved Components . | . . . Parts Scanalyzed . | . . . Part Schematics Acquired . | . . . Parts Damaged . | . . . Bothacking | -11 -10 -10 ------------ Run | Yrd Mat Min Used RIF Installer . | . . . Robots Hacked . | . . . Non-combat . | . . . Combat . | . . . Robot Hacks Applied . | . . . Relay Couplers Released . | . . . Fabnet Peak Effective % . | . . . Robots Rewired . | . . . Allies Hacked . | . . . Hacks Repelled . | . . . Allies | -11 -10 -10 -------- Run | Yrd Mat Min Total Allies . | . . . Largest Group . | . . . Highest-Rated Group . | . . . Highest-Rated Ally . | . . . Total Orders . | . . . Ally Attacks . | . . . Total Damage . | . . . Kills . | . . . Allies Corrupted . | . . . Allies Melted . | . . . Intel | -11 -10 -10 ------- Run | Yrd Mat Min Active Infowar (turns) 611 | 61 317 233 Terrain 391 | 61 317 13 Seismic 568 | 20 317 231 ECM 2 | . . 2 Robot Analysis Total . | . . . Derelict Logs Recovered . | . . . Drone Launches . | . . . Drone Recoveries . | . . . Exploration | -11 -10 -10 ------------- Run | Yrd Mat Min Turns Passed 685 | 135 317 233 Spaces Moved 602 | 98 384 120 Core 4 | 3 . 1 Treads 2 | 2 . . Legs 76 | . . 76 Wheels 520 | 93 384 43 Hover . | . . . Flight . | . . . Fastest Speed 50 | 50 80 50 Average Speed 85 | 80 80 105 Slowest Speed 190 | 160 80 190 Overloaded Moves . | . . . Propulsion Burnouts . | . . . Robots Hopped . | . . . Potential Cave-ins . | . . . Cave-ins Triggered . | . . . Exploration Rate (%) 22 | 4 39 24 Regions Visited 2 Branch Regions 1 Pre-discovered Areas . | . . . Known Exits Taken . | . . . Unknown Exits Taken 2 | 1 1 . Scrap Searched . | . . . Spaces Dug . | . . . Terrain Destroyed . | . . . Melee . | . . . Projectile . | . . . AOE . | . . . Terrain Rammed . | . . . Walls Destroyed . | . . . Machines Disabled . | . . . Actions | -11 -10 -10 --------- Run | Yrd Mat Min Total 689 | 130 391 168 Wait . | . . . Move 600 | 97 383 120 Hop . | . . . Pick Up 16 | 9 3 4 Fast Attach 7 | 7 . . Attach 7 | . . 7 Detach 2 | . . 2 Swap 5 | 3 . 2 Drop 9 | 4 3 2 Fire 43 | 10 2 31 Melee . | . . . Ram . | . . . Kick . | . . . Crush . | . . . Escape Stasis . | . . . Rewire . | . . . Trap . | . . . Miscellaneous . | . . . Route ------- -11/Scrapyard -10/Materials -10/Mines History --------- Turn | Location | Event 4 | -11/Scrapyard | Discovered new exit (range 16) 136 | -11/Scrapyard | Entered Materials 303 | -10/Materials | Build established: Mutant 441 | -10/Materials | Discovered new exit (range 13) 453 | -10/Materials | Entered Mines 505 | -10/Mines | Met a Derelict bent on vengeance 555 | -10/Mines | Assembled infested the area 560 | -10/Mines | Assisted by a Guerilla fighting off Assembled 679 | -10/Mines | Core integrity fell below 50% 686 | -10/Mines | Core integrity fell below 20% 686 | -10/Mines | Destroyed by D-53 Grenadier with Mini Grenade Launcher Last Messages --------------- 00656_ Aluminum Leg destroyed. 00660_ as-41410 destroyed. 00661_ Ion Engine destroyed. 00670_ as-59078 destroyed. 00670_ Switching to secondary target: as-65476. 00675_ Acquired 29 matter. 00676_ Lgt. Ion Engine destroyed. 00676_ Aluminum Leg destroyed. 00676_ as-65476 destroyed. 00676_ as-84393 destroyed. 00676_ as-31203 destroyed. 00676_ as-57428 destroyed. 00678_ Acquired 43 matter. 00680_ Assault Rifle destroyed. 00682_ as-00075 destroyed. 00683_ Aluminum Leg destroyed. 00684_ The unstable cave ceiling collapses. 00684_ Mining Laser destroyed. 00684_ Seismic Detector destroyed. 00684_ as-44228 destroyed. Map ----- +----------------------------------------------------+ | ????????????????## ##??## #???????????????????? | | ???????????????## ##??## #???????????????????? | | ??????????????## ##??# #???????????????????? | | ??????????????# #### ##???????????????????? | | ??????????????# ## #????????????????????? | | ??????????????## ## #???????????????????? | | ???????????????# ## ### #??????????????????? | | ??????????###### #?# ##?## ?????????????????? | | ???# ###### ## #??####???? ????????????????? | | ???# ##????????? ???????????????? | | ????????### #?????????# #??????????????? | | ??????????## #??????????# #??????????????? | | ???????????## #???????????# ##??????????????? | | ????????????# ##????????????###???????????????? | | ????????????# ##???????####????????????????????? | | ????????????# ###?????### ##???????????????????? | | ##### #??????## #???????????????????? | | ?# ! ###????# #???????????????????? | | ??# ###### ## ##### #?????? ???????????? | | ????????????# < #????! ????????????? | | ????????????##### d #### % ???????????? | | ???????????????# d ????????????? | | ???????????????## #??????????????????? | | ????????????????## #????????????????????? | | ?????????????????# # #??????????????????? | | ?????????????????# @ #??????????????????? | | ?????????????????# # # #??????????????????? | | ?????????????????#### #????????????????????? | | ????????????????????### ##????????????????????? | | ?????????????????????? #?????????????????????? | | ?????????????????????#######?????????????????????? | | ?????????????????????????????????????????????????? | | ?????????????????????????????????????????????????? | | ?????????????????????????????????????????????????? | | ?????????????????????????????????????????????????? | | ?????????????????????????????????????????????????? | | ?????????????????????????????????????????????????? | | ?????????????????????????????????????????????????? | | ?????????????????????????????????????????????????? | | ?????????????????????????????????????????????????? | | | | | | | | | | | | | | | | | | | | | +----------------------------------------------------+ Best States ------------- Heat Dissipation 25 Energy Generation 10 Energy Capacity 250 Matter Stores 377 Matter Capacity 400 Sight Range 16 Terrain Scan Range 16 Terrain Scan Density 10 Evasion (%) 55 Item Schematics ----------------- None Robot Schematics ------------------ None Fabricated ------------ Nothing Repaired ---------- Nothing Alien Tech Used ----------------- None Achievements -------------- None Challenges ------------ None Game ------ Seed ExoskeletonDerelictSaw Manual? 0 Play Time 00:17:02 Cumulative 60.2 hours Start 2025.09.01 @ 16:27:46 End 2025.09.01 @ 16:47:00 Sessions 1 Manual Loads 0 Difficulty Rogue Special Mode None Game No. 76 Rogue 76 Adventurer 0 Explorer 0 Win Type - Total 0 Types 0/0/0/0/0/0/0/0/0/0 Lore% 15 Gallery% 34 Achievement% 29 Wizard Run 0 Options --------- Layout 0 ASCII 0 Keyboard 0 Movement Mouse Keybinds 0 Fullscreen 1 Font 24/Smallcaps Map View 76x50 Zoom Use 0% Tactical HUD 1 Map Filters NONE Filters NONE Steam 1 RUN: dad0344b-7835-4457-a848-081472d34040